Cogmind - Beta 12 @@@ ROGUE MODE // 2023.03.03 @ 11:10:14 Player: btmk16 Result: Self-destructed Performance ------------- Evolutions (4) 2000 Regions Visited (16) 3200 Robots Destroyed (119) 595 Value Destroyed (5235) 5235 Prototype IDs (39) 780 Alien Tech Used (0) 0 Bonus (1718) 1718 TOTAL SCORE: 13528 Bonus ------- High Alert Combat Kills 43 Follower Combat Kills 675 Entered Garrisons 400 Aligned with FarCom 300 Met Data Miner 300 Cogmind --------- Core Integrity 576/850 Matter 290/300 Energy 227/290 System Corruption 12% Temperature Cool (9) Movement Walking (120) Location -6/Garrison Parts ------- > --- POWER (2) -------- Reinforced Deuterium Engine > --- PROPULSION (4) --- Flexi-carbon Leg Flexi-carbon Leg Flexi-carbon Leg > --- UTILITY (6) ------ Large Storage Unit Encrypted Comm Array Advanced Melee Analysis Suite Improved Light Armor Plating Advanced Hardlight Generator > --- WEAPON (3) ------- Powered Hammer > --- INVENTORY (15) --- Improved Carbon-fiber Leg Improved Titanium Leg Flexi-carbon Leg Advanced VSS Leg Potential Leg Potential Leg Enhanced Optical Array Advanced Melee Analysis Suite Advanced Melee Analysis Suite Actuator Array Improved Force Booster Advanced Transmission Jammer Peak State ------------ > --- POWER ------------ Nuclear Core Improved Deuterium Engine > --- PROPULSION ------- Flexi-carbon Leg Flexi-carbon Leg Flexi-carbon Leg Advanced VSS Leg > --- UTILITY ---------- Large Storage Unit Improved Trap Scanner Encrypted Comm Array Advanced Melee Analysis Suite Hardened Medium Armor Plating Advanced Hardlight Generator > --- WEAPON ----------- Power Sword Power Sword Power Sword > --- INVENTORY -------- Carbon-fiber Leg Improved Carbon-fiber Leg Improved Titanium Leg Flexi-carbon Leg Potential Leg Potential Leg Advanced Visual Processing Unit Advanced Melee Analysis Suite Advanced Melee Analysis Suite Actuator Array Improved Force Booster Improved Force Booster Advanced Transmission Jammer Improved Light Armor Plating Long-range Missile Launcher [Rating: 78] Favorites ----------- Power Improved Deuterium Engine Engine Improved Deuterium Engine Power Core Nuclear Core Propulsion Advanced Treads Treads Advanced Treads Leg Flexi-carbon Leg Hover Unit Aerolev Unit Utility Large Storage Unit Device Improved Heat Sink Storage Large Storage Unit Processor Advanced Melee Analysis Suite Protection Hardened Medium Armor Plating Weapon Power Sword Energy Gun Beamcaster Ballistic Gun Light Assault Rifle Launcher Rocket Launcher Impact Weapon Powered Hammer Slashing Weapon Power Sword Piercing Weapon Spear Build | -11 -10 -10 -9 -9 -9 -8 -8 -7 -7 -7 -7 -7 -7 -6 -6 -6 ------- Run | Jun Mat Min Mat Min Exi Min Mat Fac Gar Fac Low Low Dat Pro Fac Gar Slots Evolved 8 | . . . 2 . . . 2 2 . . . . . . 2 . Power 1 | . . . . . . . . . . . . . . . 1 . Propulsion 2 | . . . 1 . . . 1 . . . . . . . . . Utility 4 | . . . 1 . . . 1 1 . . . . . . 1 . Weapon 1 | . . . . . . . . 1 . . . . . . . . Parts Attached 138 | 6 10 4 27 1 . 1 31 7 8 4 2 . . 8 24 5 Power 14 | 1 . . 4 . . . 4 . 1 . . . . . 4 . Engine 12 | 1 . . 4 . . . 3 . 1 . . . . . 3 . Core 2 | . . . . . . . 1 . . . . . . . 1 . Reactor . | . . . . . . . . . . . . . . . . . Propulsion 38 | 2 2 1 9 . . . 11 1 . 1 . . . 4 7 . Treads 25 | 2 2 1 9 . . . 9 1 . 1 . . . . . . Leg 11 | . . . . . . . . . . . . . . 4 7 . Wheel . | . . . . . . . . . . . . . . . . . Hover 2 | . . . . . . . 2 . . . . . . . . . Flight . | . . . . . . . . . . . . . . . . . Utility 42 | 1 3 . 7 . . . 9 3 2 1 2 . . 2 9 3 Device 26 | . 2 . 5 . . . 5 2 2 . 1 . . 1 6 2 Storage 4 | 1 1 . . . . . 1 1 . . . . . . . . Processor 1 | . . . . . . . . . . 1 . . . . . . Hackware . | . . . . . . . . . . . . . . . . . Protection 11 | . . . 2 . . . 3 . . . 1 . . 1 3 1 Artifact . | . . . . . . . . . . . . . . . . . Weapon 44 | 2 5 3 7 1 . 1 7 3 5 2 . . . 2 4 2 Energy Gun 8 | 1 1 . 3 . . 1 2 . . . . . . . . . Energy Cannon . | . . . . . . . . . . . . . . . . . Ballistic Gun 11 | 1 1 2 3 . . . 4 . . . . . . . . . Ballistic Cannon . | . . . . . . . . . . . . . . . . . Launcher 12 | . 3 1 1 1 . . 1 . 1 1 . . . 1 1 1 Special Weapon . | . . . . . . . . . . . . . . . . . Impact Weapon 3 | . . . . . . . . . . . . . . . 2 1 Slashing Weapon 9 | . . . . . . . . 2 4 1 . . . 1 1 . Piercing Weapon 1 | . . . . . . . . 1 . . . . . . . . Special Melee Weapon . | . . . . . . . . . . . . . . . . . Unidentified Prototypes 6 | . . . 3 . . . 3 . . . . . . . . . Parts Lost 18 | . . . 1 . . . 4 . . . . . . 6 . 7 Power 3 | . . . 1 . . . 1 . . . . . . . . 1 Propulsion 6 | . . . . . . . 1 . . . . . . 4 . 1 Utility 6 | . . . . . . . 1 . . . . . . 2 . 3 Weapon 3 | . . . . . . . 1 . . . . . . . . 2 Highest Loss Streak 6 | . . . 1 . . . 2 . . . . . . 6 . 6 To Critical Strikes . | . . . . . . . . . . . . . . . . . Average Slot Usage (%) 98 | . 99 100 98 100 100 100 99 94 100 100 100 100 100 98 97 87 Engine 8 | . 14 14 10 11 11 11 8 7 7 7 7 7 7 7 6 12 Treads 26 | . 28 28 32 33 33 33 35 30 30 30 30 30 30 17 . . Leg 4 | . . . . . . . . . . . . . . 11 26 25 Device 15 | . 13 14 12 11 11 11 17 21 23 19 7 7 7 10 17 19 Storage 8 | . 14 14 11 11 11 11 9 7 7 7 7 7 7 7 6 6 Processor 2 | . . . . . . . . . . 3 7 7 7 7 6 6 Protection 8 | . . . 8 11 11 11 9 7 7 7 14 15 15 11 8 6 Energy Gun 3 | . 13 . 7 . . 11 8 4 . . . . . . . . Ballistic Gun 6 | . 14 21 14 11 11 11 8 5 . . . . . . . . Launcher 1 | . . 6 . 11 11 . . . . . . . . . . 1 Slashing Weapon 8 | . . . . . . . . 3 20 23 23 23 23 22 10 5 Naked Turns . | . . . . . . . . . . . . . . . . . Heaviest Build 74 | 13 30 30 43 42 42 43 53 54 67 67 65 63 63 68 68 74 Greatest Support 92 | 40 46 46 65 62 62 62 90 92 92 92 92 92 92 92 86 80 Greatest Overweight (x) 2 | . . . 1 . . . . . . . . . . 2 . . Average Overweight (x) . | . . . . . . . . . . . . . . . . . Largest Inventory Capacity 15 | 8 15 15 15 15 15 15 15 15 15 15 15 15 15 15 15 15 Average Capacity 14 | 7 13 15 15 15 15 15 15 15 15 15 15 15 15 15 15 15 Most Carried 15 | 8 14 15 15 15 15 15 15 15 15 15 15 15 15 15 15 15 Average Carried 14 | 4 10 14 14 15 14 15 14 14 14 15 14 15 15 12 14 14 Final Capacity 15 | 8 15 15 15 15 15 15 15 15 15 15 15 15 15 15 15 15 Final Carried 15 | 8 14 15 15 15 15 15 15 15 15 15 15 15 15 11 15 12 Class Distribution -------------------- 64% | Mutant 17% | Commander-Mutant 13% | Scavenger-Mutant 5% | Gladiator Dominant Class ---------------- Mutant | -10/Materials Mutant | -10/Mines Mutant | -9/Materials Mutant | -9/Mines Mutant | -9/Exiles Scavenger-Mutant | -8/Mines Mutant | -8/Materials Mutant | -7/Factory Commander-Mutant | -7/Garrison Commander-Mutant | -7/Factory Commander-Mutant | -7/Lower Caves Mutant | -7/Lower Caves Mutant | -7/Data Miner Mutant | -6/Proximity Caves Mutant | -6/Factory Gladiator | -6/Garrison Resources | -11 -10 -10 -9 -9 -9 -8 -8 -7 -7 -7 -7 -7 -7 -6 -6 -6 ----------- Run | Jun Mat Min Mat Min Exi Min Mat Fac Gar Fac Low Low Dat Pro Fac Gar Matter Collected 2657 | 272 227 117 489 . . 50 671 . 116 159 20 . . 170 255 111 Remotely . | . . . . . . . . . . . . . . . . . Salvage Created 4916 | 110 565 58 1079 . . 92 1194 . 30 149 . 149 . 566 774 150 Parts 226 | 5 23 5 58 . . 3 57 . . 11 . 2 . 11 44 7 Haulers Intercepted 10 | . 1 . 4 . . . 3 . . . . . . . 2 . Recyclers Shooed 3 | . 2 . 1 . . . . . . . . . . . . . Parts Field Recycled . | . . . . . . . . . . . . . . . . . Retrieved Matter . | . . . . . . . . . . . . . . . . . Parts Self-Destructed 27 | . . . . . . . . . . . 9 3 . 15 . . Prevented . | . . . . . . . . . . . . . . . . . Kills | -11 -10 -10 -9 -9 -9 -8 -8 -7 -7 -7 -7 -7 -7 -6 -6 -6 ------- Run | Jun Mat Min Mat Min Exi Min Mat Fac Gar Fac Low Low Dat Pro Fac Gar Combat Hostiles Destroyed 86 | . 10 4 20 . . 3 19 . . 3 . . . 9 10 8 Melee 15 | . . . . . . . . . . 1 . . . 5 7 2 Guns 45 | . 5 1 20 . . . 19 . . . . . . . . . AOE 26 | . 5 3 . . . 3 . . . 2 . . . 4 3 6 Classes Destroyed 15 | 3 4 . 3 . . 1 2 . . . . . . 1 1 . Worker 5 | 2 . 1 . . . . 1 . . . . . . . 1 . Builder 3 | . . . . . . 1 . . . . . . . . 2 . Tunneler 3 | 1 . . 1 . . . . . . . . . . . 1 . Hauler 10 | . 1 . 4 . . . 3 . . . . . . . 2 . Recycler 8 | 1 3 . 1 . . . 3 . . . . . . . . . Mechanic 1 | . 1 . . . . . . . . . . . . . . . Operator 3 | . . . . . . . 1 . . . . . . . 2 . Swarmer 27 | . 3 4 5 . . . 6 . . . . . . . 3 6 Saboteur 1 | . . . . . . . . . . . . . . 1 . . Grunt 31 | . 7 . 8 . . 2 5 . . 2 . . . 3 2 2 Brawler 4 | . . . 1 . . . . . . . . . . 2 1 . Duelist 4 | . . . 1 . . 1 . . . . . . . 2 . . Sentry 16 | . . . 5 . . . 6 . . 1 . . . 1 3 . Specialist 2 | . . . . . . . 2 . . . . . . . . . Programmer 1 | . . . . . . . . . . . . . . . 1 . Best Kill Streak 9 | 3 9 3 7 . . 3 3 . . 2 . . . 5 3 6 Combat Bots Only 6 | . 5 3 6 . . 3 3 . . 2 . . . 5 3 6 Max Kills in Single Turn 3 | 1 2 2 2 . . 3 1 . . 2 . . . 1 3 3 Gunslinging 1 | . . . 1 . . . . . . . . . . . . . Exploded 3 | . 1 2 . . . 3 . . . 2 . . . 1 3 3 Melee 1 | . . . . . . . . . . 1 . . . 1 1 1 Uniques/NPCs Destroyed . | . . . . . . . . . . . . . . . . . Combat | -11 -10 -10 -9 -9 -9 -8 -8 -7 -7 -7 -7 -7 -7 -6 -6 -6 -------- Run | Jun Mat Min Mat Min Exi Min Mat Fac Gar Fac Low Low Dat Pro Fac Gar Damage Taken 6458 | . 386 111 668 . . 14 1408 . 33 203 73 205 . 1788 284 1285 Core 905 | . 67 28 47 . . . 213 . . 19 18 21 . 218 12 262 Absorbed by Shields 625 | . . . . . . . 84 . . 127 . . . . 206 208 Regen/Repaired (Parts) 127 | . . . 127 . . . . . . . . . . . . . Core Remaining (%) 74 | 100 . 62 . . . 88 61 . . . . . . 60 . . Volleys Fired 242 | 12 37 4 62 . . 2 105 . 3 1 . . . 8 1 7 Largest 2 | 2 2 2 2 . . 1 2 . 1 1 . . . 1 1 1 Hottest 108 | 70 70 40 98 . . 33 108 . 33 43 . . . 43 43 43 Shots Fired 453 | 24 68 6 124 . . 2 209 . 3 1 . . . 8 1 7 Gun 420 | 24 61 4 124 . . . 207 . . . . . . . . . Cannon . | . . . . . . . . . . . . . . . . . Launcher 33 | . 7 2 . . . 2 2 . 3 1 . . . 8 1 7 Special . | . . . . . . . . . . . . . . . . . Kinetic 222 | 12 33 4 69 . . . 104 . . . . . . . . . Thermal 198 | 12 28 . 55 . . . 103 . . . . . . . . . Explosive 33 | . 7 2 . . . 2 2 . 3 1 . . . 8 1 7 Electromagnetic . | . . . . . . . . . . . . . . . . . Robot Hit Streak 20 | 7 12 3 18 . . 4 20 . . 4 . . . 7 4 6 Robot Miss Streak 6 | 2 3 1 4 . . . 6 . . . . . . 1 . 1 Penetration Max . | . . . . . . . . . . . . . . . . . Secondary Targets 11 | . 2 1 4 . . . 4 . . . . . . . . . Max Gunslinging Chain 1 | . 1 1 1 . . . 1 . . . . . . . . . Shots Hit Robots 363 | 14 46 3 85 . . 2 132 . 3 7 . 5 . 30 27 9 Core Hits 195 | 6 35 5 35 . . 8 40 . 2 5 . 1 . 24 15 19 Critical Kills . | . . . . . . . . . . . . . . . . . Critical Parts Destroyed 2 | . . . 1 . . . . . . . . . . . 1 . Critical Strikes 19 | 1 1 . 6 . . . 7 . . . . . . 1 3 . Burn 14 | 1 1 . 5 . . . 7 . . . . . . . . . Destroy 1 | . . . 1 . . . . . . . . . . . . . Smash 1 | . . . . . . . . . . . . . . . 1 . Sever 3 | . . . . . . . . . . . . . . 1 2 . Melee Attacks 169 | . . . . . . . . . 16 22 . 9 . 36 75 11 Impact 15 | . . . . . . . . . . . . . . . 14 1 Slashing 153 | . . . . . . . . . 15 22 . 9 . 36 61 10 Piercing 1 | . . . . . . . . . 1 . . . . . . . Sneak Attacks 9 | . . . . . . . . . . . . . . . 9 . Combat Hostiles . | . . . . . . . . . . . . . . . . . Follow-up Attacks 15 | . . . . . . . . . 1 2 . . . 7 5 . Damage Inflicted 11910 | 175 897 230 1498 18 . 247 2400 . 323 416 . 392 . 2144 1828 1342 Guns 4461 | 175 448 23 1441 . . . 2374 . . . . . . . . . Cannons . | . . . . . . . . . . . . . . . . . Explosions 3374 | . 449 193 . . . 236 26 . 61 178 . . . 1032 209 990 Melee 3975 | . . . . . . . . . 262 238 . 392 . 1112 1619 352 Ramming 100 | . . 14 57 18 . 11 . . . . . . . . . . Kinetic 2032 | 48 187 23 725 . . . 1049 . . . . . . . . . Thermal 2429 | 127 261 . 716 . . . 1325 . . . . . . . . . Explosive 3285 | . 360 193 . . . 236 26 . 61 178 . . . 1032 209 990 Electromagnetic 89 | . 89 . . . . . . . . . . . . . . . Impact 128 | . . . . . . . . . . . . . . . 128 . Slashing 3772 | . . . . . . . . . 187 238 . 392 . 1112 1491 352 Piercing 75 | . . . . . . . . . 75 . . . . . . . Highest Corruption 12 | . . . . . . . 1 . . . . . . . . 12 Average Corruption 1 | . . . . . . . 1 . . . . . . . . 3 Corruption Purged . | . . . . . . . . . . . . . . . . . Corruption Blocked . | . . . . . . . . . . . . . . . . . Effects 13 | . . . . . . . 12 . . . . . . . . 1 Message Errors 5 | . . . . . . . 4 . . . . . . . . 1 Matter Fused 4 | . . . . . . . 4 . . . . . . . . . Data Loss (minor) 2 | . . . . . . . 2 . . . . . . . . . Data Loss (major) 1 | . . . . . . . 1 . . . . . . . . . Misfires 1 | . . . . . . . 1 . . . . . . . . . Overload Shots . | . . . . . . . . . . . . . . . . . Overflow Damage 770 | . . 29 . . . . . . 67 5 . 138 . 102 412 17 Projectiles . | . . . . . . . . . . . . . . . . . Explosions 50 | . . 29 . . . . . . . . . . . 13 . 8 Melee 720 | . . . . . . . . . 67 5 . 138 . 89 412 9 Knockbacks 1 | . . . 1 . . . . . . . . . . . . . Impact 1 | . . . 1 . . . . . . . . . . . . . Kinetic . | . . . . . . . . . . . . . . . . . Secondary . | . . . . . . . . . . . . . . . . . Self-Inflicted Damage 191 | . . . . . . . . . 33 . . . . 88 . 70 Shots 4 | . . . . . . . . . 1 . . . . 2 . 1 Rammed 11 | . . 2 8 1 . . . . . . . . . . . . Targets Rammed 12 | . . 2 8 1 . 1 . . . . . . . . . . Kicked . | . . . . . . . . . . . . . . . . . Crushed 1 | . . . . . . 1 . . . . . . . . . . Highest Temperature 150 | 110 50 . 150 . . 9 54 . . . . . . 116 9 42 Average Temperature 30 | 51 15 . 43 . . 9 12 . . . . . . 42 9 18 Received Heat Transfer 1715 | . 192 . 270 . . 9 471 . . 78 12 . . 444 102 137 Siege Activations . | . . . . . . . . . . . . . . . . . Robots Corrupted . | . . . . . . . . . . . . . . . . . Combat Hostiles . | . . . . . . . . . . . . . . . . . Parts Fried . | . . . . . . . . . . . . . . . . . Impact Corruptions 1 | . . . . . . . . . . . . . . . 1 . Robots Melted . | . . . . . . . . . . . . . . . . . Combat Hostiles . | . . . . . . . . . . . . . . . . . Parts Melted 12 | 2 1 . 5 . . . 4 . . . . . . . . . Heat Transferred 6031 | 444 814 . 1776 . . . 2997 . . . . . . . . . Parts Sabotaged . | . . . . . . . . . . . . . . . . . Parts Stolen . | . . . . . . . . . . . . . . . . . Parts Stripped . | . . . . . . . . . . . . . . . . . Power Chain Reactions . | . . . . . . . . . . . . . . . . . Missiles Intercepted . | . . . . . . . . . . . . . . . . . Alert | -11 -10 -10 -9 -9 -9 -8 -8 -7 -7 -7 -7 -7 -7 -6 -6 -6 ------- Run | Jun Mat Min Mat Min Exi Min Mat Fac Gar Fac Low Low Dat Pro Fac Gar Peak Influence 949 | 20 213 169 408 106 . 89 175 79 949 751 . . . . 135 339 Initial 497 | . 13 82 7 106 . . 34 79 25 497 . . . . 2 95 Average 182 | 5 86 113 201 106 . 85 91 68 537 562 . . . . 51 237 Maximum Alert Level 3 | . 1 . 2 . . . . . 3 3 . . . . . 1 Low Security (%) 73 | 100 92 100 49 100 . 100 100 100 4 . . . . . 100 34 Level 1 11 | . 7 . 43 . . . . . 21 . . . . . . 65 Level 2 12 | . . . 7 . . . . . 55 90 . . . . . . Level 3 2 | . . . . . . . . . 18 9 . . . . . . Level 4 . | . . . . . . . . . . . . . . . . . Level 5 . | . . . . . . . . . . . . . . . . . High Security . | . . . . . . . . . . . . . . . . . Max Security . | . . . . . . . . . . . . . . . . . Squads Dispatched 14 | . 1 . 2 . . . 2 1 . 1 . . . 1 6 . Investigation 3 | . 1 . 1 . . . . 1 . . . . . . . . Extermination 3 | . . . . . . . . . . . . . . . 3 . Reinforcement 6 | . . . 1 . . . 2 . . . . . . . 3 . Assault 2 | . . . . . . . . . . 1 . . . 1 . . Garrison . | . . . . . . . . . . . . . . . . . Intercept . | . . . . . . . . . . . . . . . . . Searches Triggered . | . . . . . . . . . . . . . . . . . Construction Impeded . | . . . . . . . . . . . . . . . . . Haulers Reinforced . | . . . . . . . . . . . . . . . . . Active Scanning Responses . | . . . . . . . . . . . . . . . . . Cargo Convoy Interrupts . | . . . . . . . . . . . . . . . . . Stealth | -11 -10 -10 -9 -9 -9 -8 -8 -7 -7 -7 -7 -7 -7 -6 -6 -6 --------- Run | Jun Mat Min Mat Min Exi Min Mat Fac Gar Fac Low Low Dat Pro Fac Gar Distress Signals 11 | . . . 4 . . . 6 . . 1 . . . . . . Communications Jammed . | . . . . . . . . . . . . . . . . . Distress Signals . | . . . . . . . . . . . . . . . . . Times Spotted 154 | . 15 6 37 . . 3 36 1 . 12 2 2 . 14 14 12 Peak Tracking Total 10 | . 3 3 5 . . 3 4 1 . 5 1 1 . 10 3 7 Tactical Retreats 4 | . . 1 . . . . 2 . . . . . . . . 1 Traps | -11 -10 -10 -9 -9 -9 -8 -8 -7 -7 -7 -7 -7 -7 -6 -6 -6 ------- Run | Jun Mat Min Mat Min Exi Min Mat Fac Gar Fac Low Low Dat Pro Fac Gar Traps Triggered 5 | . 1 . 2 . . . 1 . 1 . . . . . . . Indirectly . | . . . . . . . . . . . . . . . . . Trap Hack Attempts . | . . . . . . . . . . . . . . . . . Triggered . | . . . . . . . . . . . . . . . . . Disarmed . | . . . . . . . . . . . . . . . . . Reprogrammed . | . . . . . . . . . . . . . . . . . Reused . | . . . . . . . . . . . . . . . . . Traps Extracted . | . . . . . . . . . . . . . . . . . Installed . | . . . . . . . . . . . . . . . . . Triggered 1 | . . . . . . . . . . . 1 . . . . . Exploded 1 | . . . . . 1 . . . . . . . . . . . Machines | -11 -10 -10 -9 -9 -9 -8 -8 -7 -7 -7 -7 -7 -7 -6 -6 -6 ---------- Run | Jun Mat Min Mat Min Exi Min Mat Fac Gar Fac Low Low Dat Pro Fac Gar Machines Disabled 21 | . 2 1 1 . . . 1 . 12 . . . . 1 1 2 Max in Single Turn 2 | . 1 1 1 . . . 1 . 1 . . . . 1 1 2 Garrison Relay 8 | . . . . . . . . . 8 . . . . . . . Phase Generator 1 | . . . . . . . . . 1 . . . . . . . Machines Repaired . | . . . . . . . . . . . . . . . . . Machines Sabotaged . | . . . . . . . . . . . . . . . . . Overloaded Fab Kills . | . . . . . . . . . . . . . . . . . Hacking | -11 -10 -10 -9 -9 -9 -8 -8 -7 -7 -7 -7 -7 -7 -6 -6 -6 --------- Run | Jun Mat Min Mat Min Exi Min Mat Fac Gar Fac Low Low Dat Pro Fac Gar Machines Accessed 35 | . 5 1 6 . 1 . 8 3 1 1 . . 4 . 5 . Terminals 25 | . 5 . 4 . . . 8 2 1 1 . . . . 4 . Fabricators . | . . . . . . . . . . . . . . . . . Repair Stations 1 | . . . 1 . . . . . . . . . . . . . Recycling Units . | . . . . . . . . . . . . . . . . . Scanalyzers 1 | . . . 1 . . . . . . . . . . . . . Garrison Access 2 | . . . . . . . . 1 . . . . . . 1 . Total Hacks 106 | . 15 1 11 . 1 . 20 12 1 3 . . 31 . 11 . Successful 60 | . 6 1 7 . 1 . 7 3 1 1 . . 31 . 2 . Failed 45 | . 8 . 4 . . . 13 9 . 2 . . . . 9 . Catastrophic 7 | . . . 2 . . . 3 . . 1 . . . . 1 . Database Lockouts 1 | . 1 . . . . . . . . . . . . . . . Manual 35 | . 7 . 1 . 1 . 17 6 . 3 . . . . . . Terminals 65 | . 15 . 7 . . . 20 9 1 3 . . . . 10 . Fabricators . | . . . . . . . . . . . . . . . . . Repair Stations 2 | . . . 2 . . . . . . . . . . . . . Recycling Units . | . . . . . . . . . . . . . . . . . Scanalyzers 2 | . . . 2 . . . . . . . . . . . . . Garrison Access 4 | . . . . . . . . 3 . . . . . . 1 . Terminal Hacks 43 | . 3 1 2 . 1 . 2 . 1 1 . . 31 . 1 . Record 12 | . . . . . . . 1 . . . . . 11 . . . Part Schematic 12 | . . . . . . . . . . . . . 12 . . . Robot Schematic 5 | . . . . . . . . . . . . . 5 . . . Robot Analysis 1 | . 1 . . . . . . . . . . . . . . . Prototype ID Bank 3 | . . . . . . . . . . . . . 3 . . . Open Door 1 | . . 1 . . . . . . . . . . . . . . Branch Access Points 1 | . . . . . . . . . . 1 . . . . . . Emergency Access Points 1 | . . . . . . . 1 . . . . . . . . . Terminal Index 1 | . 1 . . . . . . . . . . . . . . . Alert Level 1 | . . . 1 . . . . . . . . . . . . . Hauler Manifests 1 | . . . . . . . . . . . . . . . 1 . Zone Layout 2 | . 1 . 1 . . . . . . . . . . . . . Garrison Registry 1 | . . . . . . . . . 1 . . . . . . . EX-Prototype ID Bank 1 | . . . . . 1 . . . . . . . . . . . Fabricator Hacks . | . . . . . . . . . . . . . . . . . Repair Station Hacks 2 | . . . 2 . . . . . . . . . . . . . Scan Component 1 | . . . 1 . . . . . . . . . . . . . Repair 1 | . . . 1 . . . . . . . . . . . . . Recycling Unit Hacks . | . . . . . . . . . . . . . . . . . Scanalyzer 2 | . . . 2 . . . . . . . . . . . . . Insert Component 1 | . . . 1 . . . . . . . . . . . . . Analyze 1 | . . . 1 . . . . . . . . . . . . . Garrison Access Hacks 2 | . . . . . . . . 1 . . . . . . 1 . Unlock Access 2 | . . . . . . . . 1 . . . . . . 1 . Unauthorized Hacks 11 | . 3 . 1 . . . 5 2 . . . . . . . . Terminals 11 | . 3 . 1 . . . 5 2 . . . . . . . . Assimilate 3 | . . . . . . . 2 1 . . . . . . . . Botnet 8 | . 3 . 1 . . . 3 1 . . . . . . . . Fabricators . | . . . . . . . . . . . . . . . . . Repair Stations . | . . . . . . . . . . . . . . . . . Recycling Units . | . . . . . . . . . . . . . . . . . Scanalyzers . | . . . . . . . . . . . . . . . . . Garrison Access . | . . . . . . . . . . . . . . . . . Data Cores Recovered . | . . . . . . . . . . . . . . . . . Used . | . . . . . . . . . . . . . . . . . Hacking Detections 22 | . 4 . 4 . . . 6 3 . 1 . . . . 4 . Full Trace Events 2 | . . . 1 . . . . 1 . . . . . . . . Feedback Events . | . . . . . . . . . . . . . . . . . Feedback Blocked . | . . . . . . . . . . . . . . . . . Robot Schematics Acquired 5 | . . . . . . . . . . . . . 5 . . . Robots Built . | . . . . . . . . . . . . . . . . . Authchips . | . . . . . . . . . . . . . . . . . Time . | . . . . . . . . . . . . . . . . . Total Robot Build Rating . | . . . . . . . . . . . . . . . . . Part Schematics Acquired 13 | . . . 1 . . . . . . . . . 12 . . . Parts Built . | . . . . . . . . . . . . . . . . . Authchips . | . . . . . . . . . . . . . . . . . Time . | . . . . . . . . . . . . . . . . . Total Part Build Rating . | . . . . . . . . . . . . . . . . . Parts Repaired 1 | . . . 1 . . . . . . . . . . . . . Time 32 | . . . 32 . . . . . . . . . . . . . Parts Recycled . | . . . . . . . . . . . . . . . . . Recycled Matter . | . . . . . . . . . . . . . . . . . Retrieved Matter . | . . . . . . . . . . . . . . . . . Retrieved Components . | . . . . . . . . . . . . . . . . . Parts Scanalyzed 1 | . . . 1 . . . . . . . . . . . . . Part Schematics Acquired 1 | . . . 1 . . . . . . . . . . . . . Parts Damaged . | . . . . . . . . . . . . . . . . . Bothacking | -11 -10 -10 -9 -9 -9 -8 -8 -7 -7 -7 -7 -7 -7 -6 -6 -6 ------------ Run | Jun Mat Min Mat Min Exi Min Mat Fac Gar Fac Low Low Dat Pro Fac Gar Used RIF Installer . | . . . . . . . . . . . . . . . . . Robots Hacked . | . . . . . . . . . . . . . . . . . Non-combat . | . . . . . . . . . . . . . . . . . Combat . | . . . . . . . . . . . . . . . . . Robot Hacks Applied . | . . . . . . . . . . . . . . . . . Relay Couplers Released 29 | . . . . . . . . . 29 . . . . . . . Machine Destruction 29 | . . . . . . . . . 29 . . . . . . . Fabnet Peak Effective % . | . . . . . . . . . . . . . . . . . Robots Rewired 6 | . . . . . . . . . 6 . . . . . . . Allies Hacked . | . . . . . . . . . . . . . . . . . Hacks Repelled . | . . . . . . . . . . . . . . . . . Allies | -11 -10 -10 -9 -9 -9 -8 -8 -7 -7 -7 -7 -7 -7 -6 -6 -6 -------- Run | Jun Mat Min Mat Min Exi Min Mat Fac Gar Fac Low Low Dat Pro Fac Gar Total Allies 12 | . . 3 . . . . 1 1 6 . . . . 1 . . Largest Group 7 | . . 3 3 . . . 1 1 7 7 5 4 2 3 . . Highest-Rated Group 137 | . . 76 76 . . . 10 10 128 128 100 79 41 137 . . Highest-Rated Ally 96 | . . 31 31 . . . 10 10 32 32 32 32 32 96 . . Warlord Squad Rendezvous 2 | . . . . . . . . . . . . . . . 2 . Dakka 1 | . . . . . . . . . . . . . . . 1 . Muscle 1 | . . . . . . . . . . . . . . . 1 . Total Orders . | . . . . . . . . . . . . . . . . . Ally Attacks 112 | . . 13 8 . . . . . . 58 11 16 . 6 . . Total Damage 2049 | . . 82 147 . . . . . . 1067 191 287 . 275 . . Kills 21 | . . 2 2 . . . . . . 10 2 2 . 3 . . Allies Corrupted . | . . . . . . . . . . . . . . . . . Allies Melted . | . . . . . . . . . . . . . . . . . Intel | -11 -10 -10 -9 -9 -9 -8 -8 -7 -7 -7 -7 -7 -7 -6 -6 -6 ------- Run | Jun Mat Min Mat Min Exi Min Mat Fac Gar Fac Low Low Dat Pro Fac Gar Robot Analysis Total 1 | . 1 . . . . . . . . . . . . . . . Derelict Logs Recovered 5 | . . 1 . 1 . . . . . . 1 1 . 1 . . Drone Launches . | . . . . . . . . . . . . . . . . . Drone Recoveries . | . . . . . . . . . . . . . . . . . Exploration | -11 -10 -10 -9 -9 -9 -8 -8 -7 -7 -7 -7 -7 -7 -6 -6 -6 ------------- Run | Jun Mat Min Mat Min Exi Min Mat Fac Gar Fac Low Low Dat Pro Fac Gar Turns Passed 12345 | 126 588 848 1721 258 353 274 2288 484 1125 545 599 828 148 499 1523 138 Spaces Moved 6939 | 50 292 534 906 165 222 173 1020 303 633 311 381 522 96 306 957 68 Core 3 | 3 . . . . . . . . . . . . . . . . Treads 5756 | 47 292 534 906 165 222 173 1020 303 633 311 381 522 96 151 . . Legs 1180 | . . . . . . . . . . . . . . 155 957 68 Wheels . | . . . . . . . . . . . . . . . . . Hover . | . . . . . . . . . . . . . . . . . Flight . | . . . . . . . . . . . . . . . . . Fastest Speed 50 | 50 160 152 155 155 155 155 150 155 155 155 155 155 155 107 107 120 Average Speed 148 | 153 160 154 155 155 155 155 153 155 155 155 155 155 155 131 119 121 Slowest Speed 330 | 160 160 160 240 155 155 155 160 155 155 155 155 155 155 330 122 122 Overloaded Moves . | . . . . . . . . . . . . . . . . . Propulsion Burnouts . | . . . . . . . . . . . . . . . . . Robots Hopped 1 | . . . 1 . . . . . . . . . . . . . Cave-ins Triggered 1 | . . . . . . . . . . . . . . . . 1 Exploration Rate (%) 49 | 5 61 94 58 35 61 38 85 8 95 13 56 70 73 54 24 7 Regions Visited 16 Branch Regions 8 Pre-discovered Areas 3 | . . . . . . . . . . . 2 . 1 . . . Known Exits Taken 5 | . . 1 . . . . 1 1 . 1 . . . . 1 . Unknown Exits Taken 10 | 1 1 . 1 1 1 1 . . . . 1 1 1 1 . . Scrap Searched 9 | . . 1 . . . 2 . . . . 2 4 . . . . Spaces Dug 67 | . . . . . . . 12 . . 10 . 3 . 8 30 4 Terrain Destroyed 296 | . 34 13 . . . 17 24 . 17 25 . 3 . 69 35 59 Melee 47 | . . . . . . . . . . 10 . 3 . . 30 4 Projectile 1 | . . . . . . . 1 . . . . . . . . . AOE 248 | . 34 13 . . . 17 23 . 17 15 . . . 69 5 55 Terrain Rammed . | . . . . . . . . . . . . . . . . . Walls Destroyed . | . . . . . . . . . . . . . . . . . Machines Disabled . | . . . . . . . . . . . . . . . . . Actions | -11 -10 -10 -9 -9 -9 -8 -8 -7 -7 -7 -7 -7 -7 -6 -6 -6 --------- Run | Jun Mat Min Mat Min Exi Min Mat Fac Gar Fac Low Low Dat Pro Fac Gar Total 8335 | 75 349 548 1108 167 233 176 1562 319 759 349 390 529 95 350 1234 92 Wait 661 | . 3 5 73 . 4 . 375 . . 16 3 . . 2 179 1 Move 6923 | 49 291 533 903 164 221 172 1019 303 632 310 380 521 95 305 957 68 Hop 1 | . . . 1 . . . . . . . . . . . . . Pick Up 52 | 8 5 . 9 . 4 . 7 2 8 1 2 . . 2 4 . Fast Attach 36 | 6 1 . 9 . . . 11 4 2 . 1 . . . 2 . Attach 20 | . . . 4 . . . 5 . . . . . . 6 2 3 Detach . | . . . . . . . . . . . . . . . . . Swap 83 | . 9 4 15 1 . 1 15 3 6 4 1 . . 2 20 2 Drop 94 | . 3 . 24 1 4 . 25 7 14 2 3 . . . 11 . Fire 242 | 12 37 4 62 . . 2 105 . 3 1 . . . 8 1 7 Melee 131 | . . . . . . . . . 14 15 . 8 . 25 58 11 Ram . | . . . . . . . . . . . . . . . . . Kick . | . . . . . . . . . . . . . . . . . Crush 12 | . . 2 8 1 . 1 . . . . . . . . . . Escape Stasis . | . . . . . . . . . . . . . . . . . Rewire 80 | . . . . . . . . . 80 . . . . . . . Trap . | . . . . . . . . . . . . . . . . . Miscellaneous . | . . . . . . . . . . . . . . . . . Route ------- -11/Junkyard -10/Materials (discovered 3 exits: *Mat x2 / *Min) -10/Mines (discovered 2 exits: *Mat x2) -9/Materials (discovered 3 exits: *Mat / [*Min] / [*Sto]) -9/Mines (discovered 2 exits: *Mat / *Exi) -9/Exiles (discovered 2 exits: [*Min x2]) -8/Mines -8/Materials (discovered 3 exits: *Fac x3) -7/Factory (discovered 2 exits: *Low / Gar) -7/Garrison (discovered 3 exits: *Fac x3) -7/Factory (discovered 3 exits: *Fac / *Low x2) -7/Lower Caves -7/Lower Caves -7/Data Miner -6/Proximity Caves -6/Factory (discovered 2 exits: [*Fac] / Gar) -6/Garrison History --------- Turn | Location | Event 6 | -11/Junkyard | Discovered new exit (range 15) 127 | -11/Junkyard | Entered Materials 194 | -10/Materials | Discovered new exit (range 12) 306 | -10/Materials | Build established: Mutant 448 | -10/Materials | Central database locked down 597 | -10/Materials | Discovered new exit (range 5) 706 | -10/Materials | Discovered new exit (range 6) 715 | -10/Materials | Entered Mines 743 | -10/Mines | Identified exit to Materials 904 | -10/Mines | Discovered exit to Materials (range 9) 955 | -10/Mines | Met a Derelict who couldn't figure out how to use a Trap Extractor 1389 | -10/Mines | Received a Mining Laser from a helpful Derelict 1563 | -10/Mines | Entered Materials 1563 | -9/Materials | Accompanied by 3 allies 1563 | -9/Materials | Evolved 2 slots: Propulsion x1, Utility x1 1568 | -9/Materials | Led the pair of lost Derelicts to an unsafe place 1925 | -9/Materials | Discovered new exit (range 13) 2138 | -9/Materials | Discovered new exit (range 10) 2268 | -9/Materials | Discovered new exit (range 11) 2733 | -9/Materials | Build established: Scavenger-Mutant 2780 | -9/Materials | Repaired Hrd. Light Armor Plating 3284 | -9/Materials | Entered Mines 3340 | -9/Mines | Met a Derelict bent on vengeance 3360 | -9/Mines | Received a Rocket Launcher from a helpful Derelict 3405 | -9/Mines | Discovered new exit (range 7) 3536 | -9/Mines | Deemed a non-threat by the Exiles lab entrance 3536 | -9/Mines | Discovered new exit (range 5) 3542 | -9/Mines | Entered Exiles 3567 | -9/Exiles | Discovered new exit (range 15) 3600 | -9/Exiles | Build established: Mutant 3604 | -9/Exiles | Met 8R-AWN 3626 | -9/Exiles | Met EX-HEX 3671 | -9/Exiles | Met EX-BIN 3688 | -9/Exiles | Aligned with FarCom system 3690 | -9/Exiles | Given EX-Vault access code 3727 | -9/Exiles | Opened EX-Vault 3740 | -9/Exiles | Found Potential Leg 3743 | -9/Exiles | Found Potential Leg 3775 | -9/Exiles | Warned to stay clear of 0b10 Research branches 3793 | -9/Exiles | Exiles lab attacked by MAIN.C 3879 | -9/Exiles | Discovered new exit (range 10) 3895 | -9/Exiles | Left Exiles lab with Potential Leg 3895 | -9/Exiles | Entered Mines 4058 | -8/Mines | Discovered new exit (range 9) 4169 | -8/Mines | Entered Materials 4169 | -8/Materials | Evolved 2 slots: Propulsion x1, Utility x1 4170 | -8/Materials | Identified exit to Factory 4212 | -8/Materials | Build established: Scavenger-Mutant 4969 | -8/Materials | Build established: Mutant 5087 | -8/Materials | Discovered exit to Factory (range 12) 6407 | -8/Materials | Discovered exit to Factory (range 6) 6457 | -8/Materials | Entered Factory 6457 | -7/Factory | Evolved 2 slots: Utility x1, Weapon x1 6888 | -7/Factory | Discovered new exit (range 11) 6941 | -7/Factory | Identified exit to Garrison 6941 | -7/Factory | Entered Garrison 6941 | -7/Garrison | Discovered recently destroyed garrison 6941 | -7/Garrison | Accompanied by 1 ally 6969 | -7/Garrison | Garrison Relay disabled 6996 | -7/Garrison | Garrison Relay disabled 7005 | -7/Garrison | Garrison Relay disabled 7026 | -7/Garrison | Garrison Relay disabled 7055 | -7/Garrison | Phase Generator disabled 7236 | -7/Garrison | Garrison Relay disabled 7554 | -7/Garrison | Garrison Relay disabled 7569 | -7/Garrison | Discovered new exit (range 10) 7569 | -7/Garrison | Discovered new exit (range 55) 7569 | -7/Garrison | Discovered new exit (range 76) 7668 | -7/Garrison | Build established: Commander-Mutant 7821 | -7/Garrison | Garrison Relay disabled 8022 | -7/Garrison | Garrison Relay disabled 8066 | -7/Garrison | Entered Factory 8066 | -7/Factory | Accompanied by 7 allies 8466 | -7/Factory | First assault squad dispatched 8547 | -7/Factory | Discovered new exit (range 4) 8551 | -7/Factory | Discovered new exit (range 10) 8583 | -7/Factory | Identified exit to Lower Caves 8611 | -7/Factory | Entered Lower Caves 8611 | -7/Lower Caves | Accompanied by 5 allies 8631 | -7/Lower Caves | Met a Warlord Commander 8632 | -7/Lower Caves | Learned location of Warlord (-5) 8637 | -7/Lower Caves | Found Encrypted Comm Array 8647 | -7/Lower Caves | Learned location of Zion (-6) 8679 | -7/Lower Caves | Attracted the attention of an 0b10 checkpoint 9179 | -7/Lower Caves | Discovered new exit (range 12) 9210 | -7/Lower Caves | Entered another Lower Caves area 9210 | -7/Lower Caves | Accompanied by 4 allies 9371 | -7/Lower Caves | Encountered a Warlord checkpoint 9392 | -7/Lower Caves | Learned Factory trap positions 9447 | -7/Lower Caves | Attracted the attention of an 0b10 checkpoint 9657 | -7/Lower Caves | Discovered new exit (range 3) 9757 | -7/Lower Caves | Build established: Mutant 10038 | -7/Lower Caves | Entered Data Miner 10038 | -7/Data Miner | Accompanied by 2 allies 10038 | -7/Data Miner | Discovered new exit (range 6) 10068 | -7/Data Miner | Met Data Miner 10111 | -7/Data Miner | Learned location of Section 7 (-2) 10111 | -7/Data Miner | Acquired the access code to Warlord's prototype stash 10139 | -7/Data Miner | Received God Mode back door access code from Data Miner 10186 | -7/Data Miner | Entered Proximity Caves 10186 | -6/Proximity Caves | Accompanied by 2 allies 10344 | -6/Proximity Caves | Escorted by Enhanced Grunt 10344 | -6/Proximity Caves | Attracted the attention of an 0b10 outpost 10519 | -6/Proximity Caves | Lost 6 parts (4n2u) 10663 | -6/Proximity Caves | Discovered new exit (range 14) 10685 | -6/Proximity Caves | Entered Factory 10685 | -6/Factory | Evolved 2 slots: Power x1, Utility x1 10686 | -6/Factory | Loaded intel: 90 trap records 11014 | -6/Factory | Joined by Warlord Muscle squad 11497 | -6/Factory | Joined by Warlord Dakka squad 11916 | -6/Factory | Build established: Gladiator 11978 | -6/Factory | Discovered new exit (range 10) 12208 | -6/Factory | Identified exit to Garrison 12208 | -6/Factory | Entered Garrison 12247 | -6/Garrison | Triggered checkpoint 12251 | -6/Garrison | Spotted B-75 Beast 12251 | -6/Garrison | Triggered checkpoint 12332 | -6/Garrison | Crushed by falling debris 12332 | -6/Garrison | System corruption reached 10% 12346 | -6/Garrison | Self-destructed Last Messages --------------- 12275_ Lrn. Missile Launcher destroyed. 12289_ KYTL< DXO,KLW=NW4S9%9NKIEQ=GJACGXTVGAOZ 12313_ Destroyed Shock Rifle. 12315_ ALERT: Dispatching investigation squad to Factory. 12322_ G-50 Soldier destroyed. 12323_ Imp. Light Armor Plating destroyed. 12325_ Imp. Force Booster destroyed. 12327_ G-50 Soldier destroyed. 12328_ Acquired 66 matter. 12332_ The unstable cave ceiling collapses. 12332_ Crushed by falling debris. 12332_ Imp. Titanium Leg destroyed. 12332_ System corrupted by crushing effect (+5). 12332_ Imp. Trap Scanner destroyed. 12332_ System corrupted by crushing effect (+4). 12333_ Destroyed Gravmag System. 12334_ Greatsword destroyed. 12336_ Acquired 45 matter. 12337_ Imp. Deuterium Engine destroyed. 12343_ Knocked back. Map ----- +----------------------------------------------------+ | ?????????????????????????????????????????????????? | | ?????????????????????????????????????????????????? | | ?????????????????????????????????????????????????? | | ?????????????????????????????????????????????????? | | ?????????????????????????????????????????????????? | | ?????????????????????????????????????????????????? | | ?????????????????????????????????????????????????? | | ?????????????????????????????????????????????????? | | ?????????????????????????????????????????????????? | | ?????????????????????????#???????????????????????? | | ?????????????????????????;##?????????????????????? | | ????????????????????????? ?????????????????????? | | ????????????????????????# ???hh????????????????? | | ????????????????????????# #?????????????????????? | | ????????????????????????# #??ggg????????????????? | | ????????????????????????# #?????????????????????? | | ????????????????????????# #?????????????????????? | | ????????????????????????# #?????????b???????????? | | ????????????????????????# #?????????l???????????? | | ????????????????????????# #?????????????????????? | | ??????????????????????### #?????????????????????? | | ??????????????????????# #?????????????????????? | | ??????????????????????# #?????????????????????? | | ?????????????????????##*[g #?????????????????????? | | ?????????????????????#""# p#?????????????????????? | | ?????????????????????## #@ #?????????????????????? | | ??????????????????????### %#?????????????????????? | | ???????????????????????#;BB#?????????????????????? | | ???????????????????????##BB#?????????????????????? | | ????????????????????????# #?????????????????????? | | ???# ??######???????????# #?????????????????????? | | ???# ## # ###?????????# #?????????????????????? | | ???## ########### #?????????????????????? | | ???#^ #?????????????????????? | | ???#^^ #?????????????????????? | | ???#^^ ################?????????????????????? | | ???#^ # #????????????????????????????????????? | | ???# # ###????????????????????????????????????? | | ?# # ???????????????????????????????????????? | | ?# ????????????????????????????????????????? | | ?## #????????????????????????????????????????? | | ??# ?????????????????????????????????????????? | | ??## ??????????????????????????????????????????? | | ?? ?????????????????????????????????????????? | | ? %= ?????????????????????????????????????????? | | [[ ?????????????????????????????????????????? | | ? "%"?????????????????????????????????????????? | | ? #?????????????????????????????????????????? | | ??? ??????????????????????????????????????????? | | ?????????????????????????????????????????????????? | +----------------------------------------------------+ Best States ------------- Heat Dissipation 75 Energy Generation 27 Energy Capacity 480 Matter Stores 300 Matter Capacity 300 Sight Range 16 Terrain Scan Density 10 Jamming Range 16 Armor Coverage 450 Evasion (%) 55 Melee Accuracy 8 Recoil Reduction 4 Force Boost 30 Item Schematics ----------------- Hrd. Medium Armor Plating | -9/Materials | Scanalyzed Combat Drone Bay | -7/Data Miner | Free Lgt. Regenerative Plating | -7/Data Miner | Free Cld. Aerolev Unit | -7/Data Miner | Free Thermal Defense Suite | -7/Data Miner | Free Force Rifle | -7/Data Miner | Free Hvy. Treads | -7/Data Miner | Free Adv. System Restoration Module | -7/Data Miner | Free Imp. Plasma Cutter | -7/Data Miner | Free Lrn. Proton Cannon | -7/Data Miner | Free Imp. Cryofiber Web | -7/Data Miner | Free Matter Neutralizer | -7/Data Miner | Free Imp. Heavy Treads | -7/Data Miner | Free Robot Schematics ------------------ M-14 Sweeper | -7/Data Miner | Free M-28 Smith | -7/Data Miner | Free S-27 Virus | -7/Data Miner | Free H-66 Slayer | -7/Data Miner | Free L-41 Fighter | -7/Data Miner | Free Fabricated ------------ Nothing Alien Tech Used ----------------- None Achievements -------------- None Challenges ------------ None Game ------ Seed CoordinationCombatRigger Manual? 0 Play Time 01:14:42 Cumulative 544.2 hours Start 2023.03.02 @ 17:15:24 End 2023.03.03 @ 11:10:14 Sessions 3 Manual Loads 0 Difficulty Rogue Special Mode None Game No. 603 Rogue 602 Adventurer 0 Explorer 1 Win Type - Total 22 Types 15/0/4/3/0/0/0/0/0 Lore% 80 Gallery% 90 Achievement% 74 Wizard Run 0 Options --------- ASCII 0 Keyboard 1 Movement Vi Keybinds 0 Fullscreen 1 Font 18/SmallcapsGlow Map View 76x50 Tactical HUD 1 Map Filters NONE Filters NONE Steam 1 RUN: cc9f14c4-af03-4e47-aa9d-b0ca1b7b002f